lending/lending_fUSD_20251106
["ID","MTS","AMOUNT","RATE_DAILY","PERIOD"]
[393277082,1762420243679,-847.3,0.00017999,2]
[393277083,1762420243690,-847.3,0.00017999,2]
[393277084,1762420243703,-847.3,0.00017999,2]
[393277085,1762420243712,-847.3,0.00017999,2]
[393277086,1762420243722,-847.3,0.00017999,2]
[393277087,1762420243731,-847.3,0.00017999,2]
[393277088,1762420243741,-847.3,0.00017999,2]
[393277089,1762420243751,-847.3,0.00017999,2]
[393277090,1762420243761,-847.4682264,0.00017999,2]
[393277091,1762420243771,-300.0,0.00017999,2]
[393277092,1762420243781,-666.0,0.00017999,2]
[393277093,1762420243790,-500.0,0.00017999,2]
[393277095,1762420243800,-500.0,0.00017999,2]
[393277096,1762420243810,-500.0,0.00017999,2]
[393277097,1762420243819,-500.0,0.00017999,2]
[393277098,1762420243829,-500.0,0.00017999,2]
[393277099,1762420243839,-500.0,0.00017999,2]
[393277100,1762420243852,-408.1311233,0.00017999,2]
[393277102,1762420243862,-666.0,0.00017999,2]
[393277104,1762420243873,-522.56,0.00017999,2]
[393277107,1762420243884,-522.56,0.00017999,2]
[393277110,1762420243893,-522.56,0.00017999,2]
[393277111,1762420243903,-522.56,0.00017999,2]
[393277114,1762420243913,-522.56,0.00017999,2]
[393277117,1762420243923,-522.56,0.00017999,2]
[393277120,1762420243933,-522.56,0.00017999,2]
[393277122,1762420243943,-522.56,0.00017999,2]
[393277125,1762420243952,-522.56,0.00017999,2]
[393277127,1762420243962,-522.56,0.00017999,2]
[393277128,1762420243971,-522.56,0.00017999,2]
[393277129,1762420243981,-522.56,0.00017999,2]
[393277131,1762420243991,-522.56,0.00017999,2]
[393277133,1762420244000,-522.56,0.00017999,2]
[393277135,1762420244010,-522.56,0.00017999,2]
[393277136,1762420244020,-522.56,0.00017999,2]
[393277137,1762420244031,-522.56,0.00017999,2]
[393277138,1762420244041,-522.56,0.00017999,2]
[393277139,1762420244052,-522.56,0.00017999,2]
[393277140,1762420244062,-522.74569463,0.00017999,2]
[393277141,1762420244072,-300.0,0.00017999,2]
[393277142,1762420244081,-666.0,0.00017999,2]
[393277143,1762420244093,-895.83017669,0.00018,2]
[393277144,1762420244103,-208.17925064,0.00018,2]
[393277145,1762420244116,-6051688.04109404,0.00018,2]
[393277146,1762420244199,-552.8965822,0.00017443,2]
[393277147,1762420244209,-1249.2972178,0.00018,2]
[393277148,1762420244220,-14337.99540951,0.00018,2]
[393277149,1762420244231,-34098.49229929,0.00018,2]
[393277150,1762420244243,-169377.82506826,0.00018,2]
[393277151,1762420244255,-284946.93397089,0.00018,2]
[393277152,1762420244268,-5153150.77081239,0.00018,2]
[393277153,1762420244280,-297.7262798,0.00018,2]
[393277154,1762420244292,-682.60523184,0.00018,2]
[393277155,1762420244322,-515478.81208926,0.00018,2]
[393277156,1762420244333,-915.6857705,0.00018,2]
[393277157,1762420244345,-3235.63033385,0.00018,2]
[393277158,1762420244357,-523.49738546,0.00018,2]
[393277159,1762420244368,-737.41579057,0.00018,2]
[393277160,1762420244512,-953.66,0.00016274,2]
[393277161,1762420244522,-169.04,0.0001758,2]
[393277162,1762420244532,-71062.16240001,0.00018,2]
[393277163,1762420244597,-3500.0,0.00018,2]
[393277164,1762420244609,-485.67618877,0.00018,2]
[393277165,1762420244621,-466.7936093,0.00018,2]
[393277182,1762420246499,-462.21439856,0.00017671,2]
[393277183,1762420246622,-90.68218364,0.00017671,2]
[393277184,1762420246632,-703.62259369,0.00018,2]
[393277185,1762420246828,-462.70739025,0.00018,2]
[393277188,1762420877797,2300.0,0.00015,2]
[393277189,1762421042212,-1000.0,0.000209,30]
[393277190,1762421082873,-300.0,0.000209,30]
[393277192,1762421180375,176.23,0.00012111,2]
[393277196,1762421231428,-150.0,0.00015395,2]
[393277197,1762421231456,-300.0,0.00015396,2]
[393277198,1762421231484,-195.0,0.00015398,2]
[393277199,1762421231511,-4007.17907079,0.000154,2]
[393277200,1762421231655,-695.64185842,0.000154,2]
[393277201,1762421269560,10000.01,0.00015,2]
[393277202,1762421269590,48294.76465772,0.00015,2]
[393277203,1762421273466,-210.61792544,0.00015,2]
[393277204,1762421278406,-2874.78944537,0.00015,2]
[393277205,1762421278634,-10000.01,0.00015,2]
[393277206,1762421278791,-10000.01,0.00015,2]
[393277207,1762421278899,-10000.01,0.00015,2]
[393277208,1762421278988,-10000.01,0.00015,2]
[393277209,1762421279015,-188.8420283,0.00015,2]
[393277210,1762421279119,-10000.01,0.00015,2]
[393277211,1762421279254,-10000.01,0.00015,2]
[393277212,1762421279410,-10000.01,0.00015,2]
[393277213,1762421279539,-10000.01,0.00015,2]
[393277214,1762421281463,-10000.01,0.00015,2]
[393277215,1762421281770,-10000.01,0.00015,2]
[393277216,1762421282214,-181.827646,0.00015,2]
[393277217,1762421284999,-295.32886402,0.00015,2]
[393277218,1762421287490,-203.07658498,0.00015,2]
[393277219,1762421287877,-10000.01,0.00015,2]
[393277220,1762421288342,-10000.01,0.00015,2]
[393277221,1762421288467,-10000.01,0.00015,2]
[393277222,1762421288588,-10000.01,0.00015,2]
[393277223,1762421289524,-236.82087643,0.00015,2]
[393277224,1762421290629,-10000.01,0.00015,2]
[393277225,1762421290737,-10000.01,0.00015,2]
[393277226,1762421293119,-255.89261236,0.00015,2]
[393277227,1762421293700,-10000.01,0.00015,2]
[393277228,1762421293805,-10000.01,0.00015,2]
[393277229,1762421293927,-10000.01,0.00015,2]
[393277230,1762421294042,-10000.01,0.00015,2]
[393277231,1762421296390,-170.04953627,0.000149,2]
[393277232,1762421299407,-196.05907674,0.000149,2]
[393277233,1762421302840,-204.67113598,0.000149,2]
[393277234,1762421305566,-369.23685824,0.000149,2]
[393277235,1762421321962,-257.02561517,0.00014899,2]
[393277236,1762421324701,-308.88329712,0.00014899,2]
[393277237,1762421327520,-78.74645708,0.00014899,2]
[393277238,1762421327542,-113.50592168,0.00014899,2]
[393277239,1762421329356,-59.77242847,0.00014899,2]
[393277240,1762421329378,-126.64562676,0.00014899,2]
[393277241,1762421333070,-179.948,0.00014899,2]
[393277242,1762421336677,-193.40637324,0.00014899,2]
[393277243,1762421336708,-228.85098376,0.00014899,2]
[393277244,1762421339631,-152.57216897,0.00014899,2]
[393277245,1762421341777,-118.57684727,0.00014899,2]
[393277246,1762421341800,-41.35950663,0.00014899,2]
[393277247,1762421343914,-166.31519297,0.00014877,2]
[393277248,1762421343948,-161.68480703,0.00014877,2]
[393277249,1762421343977,-193.31002887,0.00014899,2]
[393277250,1762421344008,-500.0,0.00014899,2]
[393277251,1762421344035,-500.0,0.00014899,2]
[393277252,1762421344066,-500.0,0.00014899,2]
[393277253,1762421344097,-500.0,0.00014899,2]
[393277254,1762421344124,-420.06772543,0.00014899,2]
[393277255,1762421344159,-500.0,0.00014899,2]
[393277256,1762421344192,-310.16939312,0.00014899,2]
[393277257,1762421344226,-500.0,0.00014899,2]
[393277258,1762421344256,-500.0,0.00014899,2]
[393277259,1762421344287,-329.5460911,0.00014899,2]
[393277260,1762421344469,-170.4539089,0.00014899,2]
[393277261,1762421345475,-500.0,0.00014899,2]
[393277262,1762421345507,-500.0,0.00014899,2]
[393277263,1762421345538,-500.0,0.00014899,2]
[393277264,1762421345569,-500.0,0.00014899,2]
[393277265,1762421345599,-500.0,0.00014899,2]
[393277266,1762421345628,-500.0,0.00014899,2]
[393277267,1762421345661,-500.0,0.00014899,2]
[393277268,1762421345690,-500.0,0.00014899,2]
[393277269,1762421345722,-500.0,0.00014899,2]
[393277270,1762421345753,-500.0,0.00014899,2]
[393277271,1762421345800,-179.96004378,0.00014899,2]
[393277272,1762421345952,-0.01,0.00014899,2]
[393277273,1762421346883,-320.02995622,0.00014899,2]
[393277274,1762421346918,-500.0,0.00014899,2]
[393277275,1762421346949,-500.0,0.00014899,2]
[393277276,1762421346985,-500.0,0.00014899,2]
[393277277,1762421347021,-500.0,0.00014899,2]
[393277278,1762421347054,-500.0,0.00014899,2]
[393277279,1762421347086,-500.0,0.00014899,2]
[393277280,1762421347122,-500.0,0.00014899,2]
[393277281,1762421347161,-500.0,0.00014899,2]
[393277282,1762421347196,-500.0,0.00014899,2]
[393277283,1762421347230,-68.42555091,0.00014899,2]
[393277284,1762421347287,-223.09898574,0.00014899,2]
[393277285,1762421347318,-500.0,0.00014899,2]
[393277286,1762421347349,-500.0,0.00014899,2]
[393277287,1762421347380,-500.0,0.00014899,2]
[393277288,1762421347412,-500.0,0.00014899,2]
[393277289,1762421347446,-500.0,0.00014899,2]
[393277290,1762421347477,-500.0,0.00014899,2]
[393277291,1762421347506,-300.0,0.000149,2]
[393277292,1762421347871,-223.09898574,0.000149,2]
[393277293,1762421347885,-2953.81202852,0.000149,2]
[393277294,1762421347903,-10000.01,0.000149,2]
[393277295,1762421347926,-10000.01,0.000149,2]
[393277296,1762421347939,-10000.01,0.000149,2]
[393277297,1762421347952,-10000.01,0.000149,2]
[393277298,1762421347965,-10000.01,0.000149,2]
[393277299,1762421347982,-10000.01,0.000149,2]
[393277300,1762421348626,-344.33175328,0.000149,2]
[393277301,1762421349995,-10000.01,0.000149,2]
[393277302,1762421350266,-10000.01,0.000149,2]
[393277303,1762421351218,-580.74202098,0.000149,2]
[393277304,1762421352941,-10000.01,0.000149,2]
[393277305,1762421353131,-10000.01,0.000149,2]
[393277306,1762421353227,-10000.01,0.000149,2]
[393277307,1762421353352,-10000.01,0.000149,2]
[393277308,1762421353463,-10000.01,0.000149,2]
[393277309,1762421353566,-10000.01,0.000149,2]
[393277310,1762421353672,-4270.83160066,0.000149,2]
[393277311,1762421353701,-179.69179573,0.000149,2]
[393277312,1762421353731,-150.81255791,0.000149,2]
[393277313,1762421353761,-376.28002362,0.000149,2]
[393277314,1762421354070,-356.63871129,0.000149,2]
[393277315,1762421355039,-174.31790982,0.00015,2]
[393277316,1762421357748,-151.0,0.00015,2]
[393277317,1762421360609,-294.37900346,0.00015,2]
[393277318,1762421362809,-151.0,0.00014997,2]
[393277319,1762421362832,-3.17,0.00014997,2]
[393277320,1762421363523,909.39349655,0.000149,2]
[393277321,1762421364924,-147.83,0.00014997,2]
[393277322,1762421364951,-66.31349367,0.00015,2]
[393277323,1762421382426,-269.20387397,0.00015,2]
[393277324,1762421383989,-219.46346885,0.00015,2]
[393277325,1762421386083,-167.14496293,0.00015,2]
[393277326,1762421388225,-390.50040537,0.00015,2]
[393277327,1762421391537,-174.34799301,0.00015,2]
[393277328,1762421393020,-151.20378019,0.00015,2]
[393277329,1762421394519,-151.0,0.00015,2]
[393277330,1762421407524,307.01326633,0.00014899,2]
[393277331,1762421408193,-199.22908831,0.0001499,2]
[393277337,1762421422706,876.5046526,0.000149,2]
[393277338,1762421423582,-223.66125096,0.00014995,2]
[393277339,1762421425599,-26.33874904,0.00014995,2]
[393277340,1762421425623,-273.66125096,0.00014999,2]
[393277354,1762421431471,-26.33874904,0.00014999,2]
[393277355,1762421431481,-300.0,0.00014999,2]
[393277356,1762421431492,-1200.0,0.00014999,2]
[393277357,1762421431502,-150.0,0.00014999,2]
[393277358,1762421431511,-151941.78288099,0.00015,2]
[393277359,1762421431522,-52604.35903696,0.00015,2]
[393277360,1762421431533,-1044.24892,0.00015,2]
[393277361,1762421431583,-36784.75241706,0.00015,2]
[393277362,1762421431594,-189481.16616262,0.00015,2]
[393277363,1762421431693,-7257.73485404,0.00015,2]
[393277364,1762421431703,-1052.42829316,0.00015,2]
[393277372,1762421436102,150.81255791,0.000149,2]
[393277373,1762421436888,-191.38165164,0.00014999,2]
[393277379,1762421437366,-259.87710692,0.00014999,2]
[393277380,1762421437376,-500.0,0.00014999,2]
[393277381,1762421437385,-500.0,0.00014999,2]
[393277382,1762421437395,-500.0,0.00014999,2]
[393277383,1762421437405,-260.16939297,0.00014999,2]
[393277384,1762421437415,-4619922.6041449,0.00015,2]
[393277385,1762421437424,-3485.75805299,0.00015,2]
[393277386,1762421437433,-412.69150988,0.00015,2]
[393277387,1762421437442,-895.83017669,0.00015,2]
[393277388,1762421437451,-208.17925064,0.00015,2]
[393277389,1762421437460,-200.0,0.00015,2]
[393277390,1762421437469,-302.18072501,0.00015035,2]
[393277391,1762421437479,-250.0,0.00015035,2]
[393277392,1762421437488,-22786.77,0.00015152,2]
[393277393,1762421437497,-195.0,0.00015224,2]
[393277394,1762421437507,-356.63871123,0.00015233,2]
[393277395,1762421437517,-376.28002357,0.00015329,2]
[393277396,1762421437526,-446.0903,0.000154,2]
[393277397,1762421437536,-2378.80272183,0.000155,3]
[393277398,1762421437546,-356.63871123,0.00015567,2]
[393277399,1762421437555,-376.28002357,0.00015757,2]
[393277400,1762421437565,-1852.42,0.00015782,2]
[393277401,1762421437576,-1200.0,0.00015789,2]
[393277402,1762421437586,-999.0,0.00015791,3]
[393277403,1762421437597,-187.8552039,0.00015792,2]
[393277404,1762421437608,-8637.00174748,0.00015815,2]
[393277405,1762421437618,-306701.6966062,0.00015842,2]
[393277406,1762421437627,-500.0,0.00015873,2]
[393277407,1762421437636,-500.0,0.00015873,2]
[393277408,1762421437646,-500.0,0.00015873,2]
[393277409,1762421437656,-219.65200309,0.00015873,2]
[393277410,1762421437666,-500.0,0.00015873,2]
[393277411,1762421437675,-500.0,0.00015873,2]
[393277412,1762421437684,-500.0,0.00015873,2]
[393277413,1762421437693,-500.0,0.00015873,2]
[393277414,1762421437703,-290.90535112,0.00015873,2]
[393277415,1762421437713,-500.0,0.00015873,2]
[393277416,1762421437723,-500.0,0.00015873,2]
[393277417,1762421437732,-356.63871123,0.000159,2]
[393277418,1762421437743,-150.99,0.00016116,2]
[393277419,1762421437753,-9999.99,0.00016116,2]
[393277420,1762421437763,-255.0,0.00016124,2]
[393277421,1762421437777,-376.28002357,0.00016186,2]
[393277422,1762421437787,-774.43,0.00016199,2]
[393277423,1762421437796,-25820.2176,0.000162,2]
[393277424,1762421437806,-470.922,0.000162,2]
[393277425,1762421437815,-81676.41168787,0.000162,5]
[393277426,1762421437825,-2500.0,0.000162,2]
[393277427,1762421437834,-356.63871123,0.00016233,2]
[393277428,1762421437844,-181.51553002,0.00016245,2]
[393277429,1762421437854,-500.0,0.00016273,2]
[393277430,1762421437863,-500.0,0.00016273,2]
[393277431,1762421437872,-500.0,0.00016273,2]
[393277432,1762421437882,-504.73279275,0.00016273,2]
[393277433,1762421437892,-277.26642779,0.00016273,2]
[393277434,1762421437901,-500.0,0.00016273,2]
[393277435,1762421437910,-406.97735465,0.00016273,2]
[393277436,1762421437919,-500.0,0.00016273,2]
[393277437,1762421437928,-500.0,0.00016273,2]
[393277438,1762421437939,-500.0,0.00016273,2]
[393277439,1762421437950,-516.7694007,0.00016273,2]
[393277440,1762421437959,-500.0,0.00016273,2]
[393277441,1762421437968,-214.69295366,0.00016273,2]
[393277442,1762421437978,-500.0,0.00016273,2]
[393277443,1762421437987,-500.0,0.00016273,2]
[393277444,1762421437996,-500.0,0.00016273,2]
[393277445,1762421438005,-151.0,0.0001629,2]
[393277446,1762421438014,-151.0,0.0001629,2]
[393277447,1762421438023,-151.0,0.0001629,2]
[393277448,1762421438033,-151.0,0.0001629,2]
[393277449,1762421438042,-151.0,0.0001629,2]
[393277450,1762421438051,-151.0,0.0001629,2]
[393277451,1762421438061,-151.0,0.0001629,2]
[393277452,1762421438070,-151.0,0.0001629,2]
[393277453,1762421438079,-151.0,0.0001629,2]
[393277454,1762421438089,-151.0,0.0001629,2]
[393277455,1762421438098,-151.0,0.0001629,2]
[393277456,1762421438108,-151.0,0.0001629,2]
[393277457,1762421438118,-151.0,0.0001629,2]
[393277458,1762421438127,-151.0,0.0001629,2]
[393277459,1762421438136,-151.0,0.0001629,2]
[393277460,1762421438145,-151.0,0.0001629,2]
[393277461,1762421438155,-151.0,0.0001629,2]
[393277462,1762421438168,-151.0,0.0001629,2]
[393277463,1762421438177,-151.0,0.0001629,2]
[393277464,1762421438186,-151.0,0.0001629,2]
[393277465,1762421438195,-151.0,0.0001629,2]
[393277466,1762421438205,-151.0,0.0001629,2]
[393277467,1762421438215,-151.0,0.0001629,2]
[393277468,1762421438224,-151.0,0.0001629,2]
[393277469,1762421438236,-158.42178585,0.00016297,2]
[393277470,1762421438245,-700.13,0.00016299,2]
[393277471,1762421438255,-500.0,0.00016299,2]
[393277472,1762421438265,-500.0,0.00016299,2]
[393277473,1762421438274,-500.0,0.00016299,2]
[393277474,1762421438283,-420000.0,0.000163,2]
[393277475,1762421438293,-5000.0,0.00016305,2]
[393277476,1762421438303,-57416.74283754,0.00016323,2]
[393277477,1762421438313,-698.56,0.00016341,2]
[393277478,1762421438323,-459.61733602,0.00016373,2]
[393277479,1762421438333,-500.0,0.00016373,2]
[393277480,1762421438342,-500.0,0.00016373,2]
[393277481,1762421438352,-500.0,0.00016373,2]
[393277482,1762421438362,-500.0,0.00016373,2]
[393277483,1762421438371,-500.0,0.00016373,2]
[393277484,1762421438380,-501.40523433,0.00016373,2]
[393277485,1762421438390,-500.0,0.00016373,2]
[393277486,1762421438399,-2500.0,0.00016389,2]
[393277487,1762421438409,-300.0,0.00016389,2]
[393277488,1762421438419,-150.0,0.0001639,2]
[393277489,1762421438428,-150.0,0.0001639,2]
[393277490,1762421438437,-500.0,0.0001639,2]
[393277491,1762421438447,-150.0,0.0001639,2]
[393277492,1762421438456,-500.0,0.0001639,2]
[393277493,1762421438467,-500.0,0.0001639,2]
[393277494,1762421438477,-500.0,0.0001639,2]
[393277495,1762421438487,-500.0,0.0001639,2]
[393277496,1762421438497,-408.3599179,0.0001639,2]
[393277497,1762421438506,-500.0,0.0001639,2]
[393277498,1762421438516,-300.0,0.0001639,2]
[393277499,1762421438526,-500.0,0.0001639,2]
[393277500,1762421438535,-150.0,0.0001639,2]
[393277501,1762421438544,-550.0,0.0001639,2]
[393277502,1762421438554,-150.0,0.0001639,2]
[393277503,1762421438564,-500.0,0.0001639,2]
[393277504,1762421438574,-150.0,0.0001639,2]
[393277505,1762421438584,-154.15552868,0.0001639,2]
[393277506,1762421438594,-150.0,0.0001639,2]
[393277507,1762421438603,-150.0,0.0001639,2]
[393277508,1762421438613,-150.0,0.0001639,2]
[393277509,1762421438623,-500.0,0.0001639,2]
[393277510,1762421438635,-150.0,0.0001639,2]
[393277511,1762421438644,-500.0,0.0001639,2]
[393277512,1762421438654,-150.0,0.0001639,2]
[393277513,1762421438664,-500.0,0.0001639,2]
[393277514,1762421438674,-500.0,0.0001639,2]
[393277515,1762421438683,-2053.83,0.00016399,2]
[393277516,1762421438693,-2053.83,0.00016399,2]
[393277517,1762421438702,-500.0,0.00016399,2]
[393277518,1762421438711,-509.6544265,0.00016399,2]
[393277519,1762421438721,-853.66,0.00016399,2]
[393277520,1762421438731,-853.66,0.00016399,2]
[393277521,1762421438741,-500.0,0.00016399,2]
[393277522,1762421438750,-400.36653205,0.00016399,2]
[393277523,1762421438759,-500.0,0.00016399,2]
[393277524,1762421438768,-500.0,0.00016399,2]
[393277525,1762421438777,-500.0,0.00016399,2]
[393277526,1762421438787,-500.0,0.00016399,2]
[393277527,1762421438796,-500.0,0.00016399,2]
[393277528,1762421438805,-500.0,0.00016399,2]
[393277529,1762421438815,-500.0,0.00016399,2]
[393277530,1762421438824,-307.45218061,0.00016399,2]
[393277531,1762421438834,-151099.0,0.000164,2]
[393277532,1762421438843,-876.50465258,0.000164,2]
[393277533,1762421438853,-420.0,0.00016416,2]
[393277534,1762421438864,-420.0,0.00016416,2]
[393277535,1762421438874,-1000.0,0.00016421,2]
[393277536,1762421438886,-182.8775756,0.00016421,2]
[393277537,1762421438896,-1000.0,0.00016421,2]
[393277538,1762421438906,-1000.0,0.00016421,2]
[393277539,1762421438916,-1000.70281537,0.00016421,2]
[393277540,1762421438927,-1000.0,0.00016421,2]
[393277541,1762421438937,-1000.0,0.00016421,2]
[393277542,1762421438947,-1000.0,0.00016421,2]
[393277543,1762421438956,-1000.0,0.00016421,2]
[393277544,1762421438966,-150.0,0.00016438,2]
[393277545,1762421438975,-500.0,0.00016438,2]
[393277546,1762421438985,-344.69551285,0.00016438,2]
[393277547,1762421438995,-500.0,0.00016438,2]
[393277548,1762421439004,-500.0,0.00016438,2]
[393277549,1762421439013,-500.0,0.00016438,2]
[393277550,1762421439023,-500.0,0.00016438,2]
[393277551,1762421439032,-500.0,0.00016438,2]
[393277552,1762421439041,-501.13567703,0.00016438,2]
[393277553,1762421439051,-406.96,0.00016467,2]
[393277554,1762421439061,-3272.89932696,0.00016473,2]
[393277555,1762421439071,-774.43,0.00016473,2]
[393277556,1762421439081,-250.0,0.00016489,2]
[393277557,1762421439090,-200.0,0.00016489,2]
[393277558,1762421439101,-195.0,0.00016489,2]
[393277559,1762421439111,-300.0,0.00016489,2]
[393277560,1762421439122,-1680.0,0.00016499,2]
[393277561,1762421439133,-15192.32989186,0.000165,2]
[393277562,1762421439143,-195.0,0.000165,2]
[393277563,1762421439156,-150.0,0.00016527,2]
[393277564,1762421439168,-150.0,0.00016527,2]
[393277565,1762421439179,-505.03214734,0.00016527,2]
[393277566,1762421439189,-150.0,0.00016527,2]
[393277567,1762421439198,-500.0,0.00016527,2]
[393277568,1762421439209,-300.0,0.00016527,2]
[393277569,1762421439219,-500.0,0.00016527,2]
[393277570,1762421439231,-200.0,0.00016527,2]
[393277571,1762421439240,-550.0,0.00016527,2]
[393277572,1762421439250,-150.0,0.00016527,2]
[393277573,1762421439259,-500.0,0.00016527,2]
[393277575,1762421439269,-150.0,0.00016527,2]
[393277576,1762421439278,-150.0,0.00016527,2]
[393277577,1762421439288,-213.05879372,0.00016527,2]
[393277578,1762421439297,-500.0,0.00016527,2]
[393277579,1762421439307,-356.64145389,0.00016527,2]
[393277580,1762421439316,-500.0,0.00016527,2]
[393277581,1762421439326,-500.0,0.00016527,2]
[393277582,1762421439335,-356.63871123,0.00016567,2]
[393277583,1762421439346,-772.15262928,0.00016568,2]
[393277584,1762421439355,-150.0,0.00016575,2]
[393277585,1762421439365,-376.28002357,0.00016614,2]
[393277586,1762421439374,-3361.79145423,0.00016639,2]
[393277587,1762421439384,-150.0,0.00016664,2]
[393277588,1762421439393,-150.0,0.00016664,2]
[393277589,1762421439403,-150.0,0.00016664,2]
[393277590,1762421439413,-500.0,0.00016664,2]
[393277591,1762421439422,-300.0,0.00016664,2]
[393277592,1762421439431,-500.0,0.00016664,2]
[393277594,1762421439440,-550.0,0.00016664,2]
[393277596,1762421439450,-500.0,0.00016664,2]
[393277597,1762421439459,-150.0,0.00016664,2]
[393277599,1762421439469,-150.0,0.00016664,2]
[393277601,1762421439479,-500.0,0.00016664,2]
[393277603,1762421439488,-500.0,0.00016664,2]
[393277605,1762421439499,-500.0,0.00016664,2]
[393277606,1762421439510,-634.78303561,0.00016673,2]
[393277607,1762421439521,-500.0,0.00016673,2]
[393277608,1762421439532,-500.0,0.00016673,2]
[393277609,1762421439543,-500.0,0.00016673,2]
[393277610,1762421439552,-500.0,0.00016673,2]
[393277611,1762421439562,-1098.18,0.00016706,2]
[393277612,1762421439571,-549.09,0.00016706,2]
[393277613,1762421439580,-555.52,0.00016706,2]
[393277614,1762421439589,-549.09,0.00016706,2]
[393277615,1762421439599,-300.82,0.00016722,2]
[393277616,1762421439608,-150.76,0.00016722,2]
[393277617,1762421439617,-774.43,0.00016747,2]
[393277618,1762421439626,-200.0,0.000168,6]
[393277619,1762421439635,-228.39525195,0.00016801,2]
[393277620,1762421439644,-150.0,0.00016801,2]
[393277621,1762421439654,-200.84185402,0.00016801,2]
[393277622,1762421439662,-500.0,0.00016801,2]
[393277623,1762421439671,-300.0,0.00016801,2]
[393277624,1762421439680,-500.0,0.00016801,2]
[393277625,1762421439689,-550.0,0.00016801,2]
[393277626,1762421439698,-500.0,0.00016801,2]
[393277627,1762421439708,-150.0,0.00016801,2]
[393277628,1762421439717,-292.08320953,0.00016801,2]
[393277629,1762421439727,-178.38259742,0.00016801,2]
[393277630,1762421439736,-500.0,0.00016801,2]
[393277631,1762421439746,-500.0,0.00016801,2]
[393277632,1762421439755,-500.0,0.0001682,2]
[393277633,1762421439764,-1000.0,0.00016821,2]
[393277634,1762421439773,-1000.0,0.00016821,2]
[393277635,1762421439782,-1025.42297104,0.00016821,2]
[393277636,1762421439791,-520.11501514,0.00016821,2]
[393277637,1762421439800,-1000.0,0.00016821,2]
[393277638,1762421439809,-1000.0,0.00016821,2]
[393277639,1762421439818,-1000.0,0.00016821,2]
[393277640,1762421439827,-1000.0,0.00016821,2]
[393277641,1762421439836,-1000.0,0.00016821,2]
[393277642,1762421439846,-500.0,0.000169,6]
[393277643,1762421439855,-356.63871123,0.000169,2]
[393277644,1762421439866,-1000.0,0.00016921,2]
[393277645,1762421439875,-1000.0,0.00016921,2]
[393277646,1762421439884,-1000.0,0.00016921,2]
[393277647,1762421439893,-1000.0,0.00016921,2]
[393277648,1762421439902,-599.95401361,0.00016921,2]
[393277649,1762421439911,-1000.0,0.00016921,2]
[393277650,1762421439920,-283.7415811,0.00016935,2]
[393277651,1762421439929,-300.0,0.00016935,2]
[393277652,1762421439939,-300.0,0.00016935,2]
[393277653,1762421439947,-300.0,0.00016935,2]
[393277654,1762421439957,-300.0,0.00016935,2]
[393277655,1762421439966,-323.34285068,0.00016935,2]
[393277656,1762421439975,-195.0,0.00016935,2]
[393277657,1762421439984,-238.10507591,0.00016935,2]
[393277658,1762421439993,-200.0,0.00016935,2]
[393277659,1762421440002,-200.0,0.00016935,2]
[393277660,1762421440010,-201.07254976,0.00016935,2]